bitfinex-derivatives/quotes_BTCF0:USTF0_20250308
["timestamp","ask_amount","ask_price","bid_price","bid_amount"]
[1741397451107,0.1164526,85896.0,85889.0,0.4881]
[1741397451313,0.1164495,85899.0,85889.0,0.4881]
[1741397451504,0.36092808,85898.0,85889.0,0.15089227]
[1741397452412,0.36092808,85898.0,85892.0,0.1164568]
[1741397452803,0.36092808,85898.0,85889.0,0.15089227]
[1741397453002,0.36092808,85898.0,85892.0,0.05858482]
[1741397453301,0.36092808,85898.0,85894.0,0.1164544]
[1741397453502,0.00192218,85905.0,85895.0,0.1315]
[1741397453700,0.00192218,85905.0,85898.0,0.1164491]
[1741397453910,0.00192218,85905.0,85899.0,0.73324]
[1741397454114,0.0001746,85905.0,85901.0,0.1164443]
[1741397454311,0.1166153,85905.0,85902.0,0.1288]
[1741397454514,0.1256746,85905.0,85902.0,0.1288]
[1741397454812,0.116447,85900.0,85899.0,0.73384]
[1741397455020,0.116447,85900.0,85899.0,0.73324]
[1741397455715,0.202127,85900.0,85899.0,0.6169165]
[1741397455904,0.1164538,85895.0,85870.0,0.15818978]
[1741397456111,0.1164771,85878.0,85873.0,0.01748]
[1741397456407,0.4190359,85882.0,85874.0,0.2595]
[1741397456408,0.1255,85877.0,85874.0,0.2595]
[1741397456608,0.3608,85876.0,85874.0,0.2595]
[1741397459006,0.3608,85876.0,85874.0,0.20162762]
[1741397459318,0.131,85875.0,85874.0,0.20162762]
[1741397460015,0.3608,85881.0,85875.0,0.1164797]
[1741397460217,0.1298,85880.0,85878.0,0.1164761]
[1741397460415,0.1298,85880.0,85879.0,0.1355]
[1741397460607,0.3608,85881.0,85879.0,0.1355]
[1741397460807,0.0001746,85884.0,85879.0,0.1355]
[1741397461005,0.0001746,85884.0,85883.0,0.11647]
[1741397461308,0.36254721,85899.0,85897.0,0.116451]
[1741397461309,0.00174721,85899.0,85897.0,0.116451]
[1741397461610,0.1298,85907.0,85898.0,0.1355]
[1741397461912,0.1024952,85908.0,85905.0,0.116439]
[1741397462110,0.1024952,85908.0,85906.0,0.1355]
[1741397462513,0.1024952,85908.0,85907.0,0.0834]
[1741397462813,0.1299746,85915.0,85907.0,0.0834]
[1741397463015,0.06182001,85928.0,85915.0,0.058213]
[1741397463310,0.13666027,85932.0,85923.0,0.3608]
[1741397463311,0.11927815,85932.0,85923.0,0.3608]
[1741397463508,0.1164239,85917.0,85916.0,0.0862]
[1741397463708,0.1892052,85927.0,85915.0,0.3608]
[1741397463922,0.2659,85916.0,85915.0,0.3608]
[1741397464216,0.2659,85916.0,85915.0,0.4772267]
[1741397464515,0.2659,85916.0,85915.0,0.3608]
[1741397465016,0.2659,85916.0,85915.0,0.4772267]
[1741397465212,0.2659,85916.0,85915.0,0.41935432]
[1741397465511,0.0001746,85930.0,85924.0,0.116414]
[1741397465913,0.0001746,85930.0,85920.0,0.15818978]
[1741397466116,0.0001746,85930.0,85929.0,0.1164077]
[1741397466317,0.0001746,85930.0,85925.0,0.0582062]
[1741397466619,0.0001746,85930.0,85929.0,0.1164077]
[1741397467412,0.0001746,85930.0,85927.0,0.1164097]
[1741397467608,0.0001746,85930.0,85922.0,0.3608]
[1741397467803,0.0031746,85930.0,85927.0,0.1164092]
[1741397468017,0.0031746,85930.0,85929.0,0.1164077]
[1741397468219,0.0031746,85930.0,85929.0,0.05853532]
[1741397468409,0.0061746,85930.0,85929.0,0.41933532]
[1741397468813,0.0061746,85930.0,85929.0,0.3608]
[1741397469018,0.0061746,85930.0,85929.0,0.1164077]
[1741397469209,0.0061746,85930.0,85928.0,0.3608]
[1741397469410,0.129,85929.0,85928.0,0.3608]
[1741397469811,0.129,85929.0,85882.0,0.0175]
[1741397469812,0.3608,85921.0,85882.0,0.0175]
[1741397470116,0.47727,85883.0,85882.0,0.0175]
[1741397470814,0.36091703,85883.0,85873.0,0.01748]
[1741397471015,0.1164904,85868.0,85867.0,0.73384]
[1741397471222,0.3608,85881.0,85869.0,0.0001746]
[1741397471410,0.00011703,85883.0,85871.0,0.15818978]
[1741397471606,0.3608,85889.0,85873.0,0.1164835]
[1741397471806,0.4190357,85882.0,85870.0,0.41496875]
[1741397472012,0.1164863,85871.0,85870.0,0.41496875]
[1741397472411,0.4772863,85871.0,85870.0,0.41496875]
[1741397472918,0.4772863,85871.0,85870.0,0.00716875]
[1741397473120,0.1164904,85868.0,85867.0,0.67596762]
[1741397473323,0.1164904,85868.0,85867.0,0.67536762]
[1741397473709,0.01768623,85870.0,85867.0,0.67536762]
[1741397473915,0.3598,85871.0,85867.0,0.66436762]
[1741397474110,0.3598,85871.0,85870.0,0.1164877]
[1741397474318,0.3608,85882.0,85867.0,0.66496762]
[1741397474524,0.3608,85882.0,85874.0,0.0582406]
[1741397474721,0.3608,85882.0,85867.0,0.66436762]
[1741397474722,0.3608,85875.0,85867.0,0.66496762]
[1741397474922,0.3608,85882.0,85874.0,0.1164822]
[1741397475118,0.3608,85875.0,85874.0,0.1164822]
[1741397475317,0.3608,85875.0,85869.0,0.1164884]
[1741397475526,0.3608,85875.0,85870.0,0.1164875]
[1741397475916,0.3608,85875.0,85870.0,0.1164871]
[1741397476424,0.1314,85874.0,85867.0,0.78085902]
[1741397476613,0.3608,85868.0,85867.0,0.78085932]
[1741397477316,0.3608,85868.0,85867.0,0.72298694]
[1741397477716,0.3608,85868.0,85867.0,0.60649524]
[1741397478722,0.3608,85868.0,85840.0,0.73344]
[1741397478921,0.1165131,85852.0,85847.0,0.01748]
[1741397479125,0.1327,85851.0,85847.0,0.01748]
[1741397480325,0.3608,85848.0,85844.0,0.01748]
[1741397480525,0.1327,85847.0,85841.0,8.817e-05]
[1741397480927,0.1165257,85842.0,85841.0,8.817e-05]
[1741397481139,0.1327,85847.0,85841.0,8.817e-05]
[1741397481432,0.1165257,85842.0,85841.0,8.817e-05]
[1741397483421,0.116527,85841.0,85840.0,0.68502218]
[1741397483636,0.477327,85841.0,85840.0,0.68442218]
[1741397484536,0.47740905,85841.0,85840.0,0.68442218]
[1741397485136,0.61110905,85841.0,85840.0,0.68442218]
[1741397485535,0.49458205,85841.0,85840.0,0.68442218]
[1741397486140,0.49458205,85841.0,85840.0,0.67565579]
[1741397486437,0.49458205,85841.0,85840.0,0.61778341]
[1741397486633,0.49458205,85841.0,85840.0,0.73431181]
[1741397486839,0.49458205,85841.0,85840.0,0.61778341]
[1741397487039,0.49458205,85841.0,85840.0,0.73431181]
[1741397487239,0.36088205,85841.0,85840.0,0.61778341]
[1741397487937,0.36088205,85841.0,85840.0,0.74498341]
[1741397488325,0.48808205,85841.0,85840.0,0.74498341]
[1741397488728,0.12728205,85841.0,85840.0,0.50027251]
[1741397489128,0.60460905,85841.0,85840.0,0.3819525]
[1741397489333,0.60460905,85841.0,85840.0,0.32408012]
[1741397490028,0.48808205,85841.0,85840.0,0.32408012]
[1741397490227,0.48808205,85841.0,85840.0,0.44060852]
[1741397490436,8.205e-05,85841.0,85840.0,0.43172853]
[1741397490828,0.3608,85866.0,85840.0,1.17358513]
[1741397491039,0.3608,85859.0,85852.0,0.1165121]
[1741397491336,0.3608,85859.0,85852.0,0.1299961]
[1741397491738,0.3608,85859.0,85852.0,0.13658515]
[1741397491939,0.4842,85859.0,85852.0,0.25309725]
[1741397492142,0.48544001,85859.0,85852.0,0.25309725]
[1741397492334,0.48544001,85859.0,85852.0,0.13658515]
[1741397492535,0.48544001,85859.0,85852.0,0.19522487]
[1741397492735,0.12464001,85859.0,85852.0,0.19522487]
[1741397492932,0.11648,85876.0,85853.0,0.0582547]
[1741397493137,0.2488,85870.0,85863.0,0.1164963]
[1741397493438,0.2488,85870.0,85864.0,0.13768515]
[1741397493637,0.36200001,85889.0,85869.0,0.0582445]
[1741397493836,0.36200001,85889.0,85888.0,0.1164633]
[1741397493837,0.3608,85889.0,85888.0,0.1164633]
[1741397494038,0.2659,85899.0,85888.0,0.18227665]
[1741397494342,0.0001747,85897.0,85891.0,0.1164586]
[1741397494542,0.0001747,85897.0,85892.0,0.01348515]
[1741397494749,0.3608,85895.0,85893.0,0.23678515]
[1741397494945,0.2659,85894.0,85893.0,0.2233]
[1741397495244,0.2659,85894.0,85893.0,0.23686013]
[1741397495439,0.1303,85894.0,85893.0,0.17898775]
[1741397495642,0.1303,85894.0,85893.0,0.10644013]
[1741397495835,0.2659,85894.0,85893.0,0.10644013]
[1741397496045,0.2659,85894.0,85893.0,0.12392013]
[1741397496242,0.3823551,85894.0,85893.0,0.01356013]
[1741397496440,0.116466,85886.0,85881.0,0.01336209]
[1741397496637,0.1164727,85881.0,85880.0,0.7345747]
[1741397496836,0.4772727,85881.0,85880.0,0.7339347]
[1741397497034,0.7319727,85881.0,85880.0,0.7339347]
[1741397497238,0.6155,85881.0,85872.0,0.01336333]
[1741397497438,0.116485,85872.0,85864.0,0.01336333]
[1741397497643,0.116485,85872.0,85865.0,0.01336333]
[1741397497849,0.371185,85872.0,85866.0,0.01348225]
[1741397498144,0.1165067,85856.0,85855.0,0.27615949]
[1741397498347,0.1165148,85850.0,85849.0,0.28652256]
[1741397498546,0.1165229,85844.0,85843.0,0.15506685]
[1741397498739,0.4773229,85844.0,85843.0,0.15506685]
[1741397499137,0.36089207,85844.0,85843.0,0.15506685]
[1741397499442,0.47741497,85844.0,85843.0,0.15506685]
[1741397500041,9.207e-05,85844.0,85843.0,0.63239115]
[1741397500251,0.36208,85856.0,85851.0,0.1165132]
[1741397500252,0.3608,85856.0,85851.0,0.1165132]
[1741397500444,0.3608,85856.0,85853.0,0.0582553]
[1741397500642,0.00120001,85867.0,85860.0,0.1165003]
[1741397500845,0.2177,85871.0,85861.0,0.2503]
[1741397501145,0.3608,85874.0,85863.0,0.1164972]
[1741397501349,0.3609747,85864.0,85861.0,0.2503]
[1741397501541,0.1164985,85862.0,85861.0,0.19242762]
[1741397502145,0.2380985,85862.0,85861.0,0.19242762]
[1741397502750,0.00137471,85864.0,85861.0,0.19242762]
[1741397502946,0.0001747,85864.0,85861.0,0.19242762]
[1741397503153,0.1164985,85862.0,85861.0,0.19242762]
[1741397503751,0.0001747,85864.0,85861.0,0.19242762]
[1741397504747,0.0001747,85864.0,85861.0,0.25105424]
[1741397504942,0.3608,85863.0,85861.0,0.13455524]
[1741397505141,0.1164985,85862.0,85861.0,0.13455524]
[1741397505449,0.1221,85862.0,85861.0,0.13455524]
[1741397505862,0.2385985,85862.0,85861.0,0.13455524]
[1741397506049,0.3711985,85862.0,85861.0,0.1294]
[1741397506244,0.1221,85862.0,85861.0,0.1294]
[1741397506548,0.0001747,85864.0,85861.0,0.1294]
[1741397507250,0.116671,85864.0,85861.0,0.1294]
[1741397507559,0.1164972,85863.0,85861.0,0.07152762]
[1741397507855,0.1215747,85864.0,85862.0,0.1232]
[1741397508150,0.0001747,85864.0,85862.0,0.1232]
[1741397508550,0.0001747,85864.0,85853.0,0.1165099]
[1741397508551,0.116527,85841.0,85840.0,0.73436]
[1741397508751,0.116527,85841.0,85840.0,0.73376]
[1741397509254,0.477327,85841.0,85840.0,0.73376]
[1741397510344,0.3608,85841.0,85840.0,0.73376]
[1741397510755,0.3608,85841.0,85840.0,0.67588762]
[1741397511156,0.477327,85841.0,85840.0,0.79758762]
[1741397511457,0.3608,85841.0,85840.0,0.93158762]
[1741397511653,0.477327,85841.0,85840.0,0.93158762]
[1741397511854,0.3608,85841.0,85840.0,0.93158762]
[1741397512561,0.3608,85841.0,85840.0,1.04811602]
[1741397512763,0.1212,85856.0,85840.0,0.93158762]
[1741397512951,0.1212,85856.0,85840.0,0.98985172]
[1741397513153,0.1212,85856.0,85847.0,0.1165177]
[1741397513461,0.1212,85856.0,85848.0,0.2593]
[1741397513754,0.1212,85856.0,85848.0,0.20142762]
[1741397513963,0.1219,85855.0,85848.0,0.20142762]
[1741397514153,0.1165239,85844.0,85841.0,0.1255]
[1741397514355,0.4773257,85842.0,85841.0,0.1255]
[1741397514554,0.3608,85842.0,85841.0,0.1255]
[1741397514750,0.3596245,85843.0,85841.0,0.1255]
[1741397514955,0.2536,85842.0,85841.0,0.1255]
[1741397515152,0.2536,85842.0,85840.0,0.67648762]
[1741397515352,0.477327,85841.0,85840.0,0.67588762]
[1741397515559,0.3608,85841.0,85821.0,0.1331]
[1741397515766,0.4190739,85826.0,85821.0,0.1331]
[1741397515954,0.37904879,85825.0,85821.0,0.1331]
[1741397516159,0.37904879,85825.0,85822.0,0.1253]
[1741397516357,0.26249999,85825.0,85822.0,0.1253]
[1741397516858,0.26249999,85825.0,85822.0,0.06742762]
[1741397517065,0.26249999,85825.0,85823.0,0.1331]
[1741397517254,0.1165519,85823.0,85816.0,9.77e-05]
[1741397517564,0.26249999,85825.0,85816.0,9.77e-05]
[1741397517565,0.26249999,85825.0,85817.0,0.1331]
[1741397517862,0.2626,85822.0,85817.0,0.1331]
[1741397518654,0.6234,85822.0,85817.0,0.1331]
[1741397519062,0.2626,85822.0,85817.0,0.1331]
[1741397519760,0.2626,85822.0,85817.0,0.07522762]
[1741397520063,0.2626,85822.0,85818.0,0.1261]
[1741397521461,0.2626,85822.0,85816.0,9.77e-05]
[1741397521462,0.1165596,85817.0,85816.0,9.77e-05]
[1741397522060,0.36208,85819.0,85803.0,0.00174797]
[1741397522361,0.1165813,85801.0,85792.0,0.3608]
[1741397522561,0.1165813,85801.0,85783.0,0.1333]
[1741397522758,0.0582907,85801.0,85783.0,0.07542762]
[1741397522954,0.3608,85794.0,85784.0,0.1243]
[1741397523161,0.1165999,85788.0,85784.0,0.1243]
[1741397523358,0.1165999,85788.0,85781.0,0.73452]
[1741397523359,0.3608,85785.0,85781.0,0.73452]
[1741397523556,0.3608,85785.0,85781.0,0.73392]
[1741397523766,0.1238,85784.0,85781.0,0.73392]
[1741397524269,0.1166072,85782.0,85781.0,0.73392]
[1741397524465,0.1166072,85782.0,85773.0,0.00011815]
[1741397524665,0.124,85781.0,85773.0,0.00011815]
[1741397524971,0.124,85781.0,85779.0,0.1166104]
[1741397525159,0.3608,85794.0,85780.0,0.1306]
[1741397525464,0.00174918,85807.0,85791.0,0.1165949]
[1741397525672,0.124,85801.0,85791.0,0.1165949]
[1741397525969,0.124,85801.0,85791.0,0.05872252]
[1741397526162,0.00174918,85807.0,85791.0,0.05872252]
[1741397526356,0.124,85806.0,85791.0,0.05872252]
[1741397526558,0.00174918,85807.0,85806.0,0.1165745]
[1741397526759,0.3608,85817.0,85816.0,0.116561]
[1741397527259,0.3608,85817.0,85816.0,0.134041]
[1741397527459,0.3608,85817.0,85815.0,0.20617231]
[1741397527656,0.20499041,85819.0,85818.0,0.1165582]
[1741397528463,0.0001748,85825.0,85824.0,0.1165501]
[1741397528864,0.0001748,85825.0,85824.0,0.05867772]
[1741397529864,0.0001748,85825.0,85807.0,0.01752]
[1741397530164,0.1165705,85809.0,85795.0,0.73408]
[1741397530373,0.1165705,85809.0,85796.0,0.1222]
[1741397530665,0.1165705,85809.0,85795.0,0.73408]
[1741397530871,0.1165705,85809.0,85808.0,0.00909412]
[1741397531169,0.1165881,85796.0,85795.0,0.73408]
[1741397531468,0.3608,85799.0,85795.0,0.73408]
[1741397531664,0.1165881,85796.0,85795.0,0.73408]
[1741397531862,0.1165881,85796.0,85795.0,0.67620762]
[1741397532262,0.4773881,85796.0,85795.0,0.67620762]
[1741397532567,0.1165922,85793.0,85792.0,8.298e-05]
[1741397533771,0.1299,85795.0,85792.0,8.298e-05]
[1741397534862,0.1299,85795.0,85784.0,0.2097106]
[1741397535271,0.1215,85794.0,85780.0,0.64047362]
[1741397535477,0.1166044,85784.0,85780.0,0.00064]
[1741397535664,0.1166044,85784.0,85774.0,0.1339]
[1741397535861,0.0583128,85769.0,85750.0,0.27903362]
[1741397536073,0.2177,85784.0,85755.0,0.1339]
[1741397536074,0.3608,85763.0,85755.0,0.1339]
[1741397536271,0.126,85768.0,85759.0,0.27903362]
[1741397536567,0.00017491,85768.0,85761.0,0.4774357]
[1741397536774,0.00017491,85768.0,85767.0,0.1166276]
[1741397536968,0.00029306,85768.0,85767.0,0.09984]
[1741397537472,0.00029306,85768.0,85761.0,0.72228]
[1741397537768,0.0583214,85756.0,85722.0,0.3608]
[1741397537973,0.0583376,85732.0,85717.0,0.1279]
[1741397538173,0.3608,85726.0,85717.0,0.1279]
[1741397538474,0.128,85725.0,85717.0,0.1279]
[1741397538669,0.1268,85724.0,85720.0,0.3608]
[1741397538878,0.1268,85724.0,85721.0,0.1279]
[1741397539063,0.1268,85724.0,85723.0,0.1166874]
[1741397539260,0.00017491,85733.0,85722.0,0.3608]
[1741397539470,0.1254,85732.0,85722.0,0.3608]
[1741397539666,0.1254,85732.0,85731.0,0.3608]
[1741397539861,0.1254,85732.0,85722.0,0.3608]
[1741397540063,0.0583406,85728.0,85722.0,0.3608]
[1741397540264,0.2531,85727.0,85722.0,0.3608]
[1741397540663,0.2531,85727.0,85721.0,0.1279]
[1741397540664,8.977e-05,85726.0,85712.0,0.3608]
[1741397540870,0.1167024,85712.0,85703.0,0.3608]
[1741397541069,0.3608,85718.0,85703.0,0.30305261]
[1741397541269,0.0583525,85710.0,85700.0,0.1]
[1741397541463,0.116712,85705.0,85700.0,0.1]
[1741397541663,0.2531,85704.0,85700.0,0.1]
[1741397541875,0.1254,85704.0,85703.0,0.3608]
[1741397542175,0.00017502,85714.0,85703.0,0.3608]
[1741397542378,0.00017502,85714.0,85711.0,0.3608]
[1741397542674,0.00017502,85714.0,85712.0,0.2465]
[1741397542877,0.00017502,85714.0,85711.0,0.3608]
[1741397543572,0.00017502,85714.0,85703.0,0.3608]
[1741397543573,0.00017502,85714.0,85712.0,0.1311]
[1741397543973,0.00017502,85714.0,85713.0,0.06712762]
[1741397544165,0.00017502,85714.0,85713.0,0.54462862]
[1741397544367,0.00017502,85714.0,85713.0,0.42792762]
[1741397544780,0.00017502,85714.0,85709.0,0.3608]
[1741397544977,0.00017502,85714.0,85701.0,0.1311]
[1741397545176,0.11687482,85714.0,85701.0,0.1311]
[1741397545479,0.25837502,85714.0,85701.0,0.2478168]
[1741397545677,0.1167024,85712.0,85698.0,0.3608]
[1741397545878,0.2601,85711.0,85701.0,0.1318]
[1741397546271,0.116716,85702.0,85701.0,0.1318]
[1741397546466,0.2601,85711.0,85701.0,0.1318]
[1741397546467,0.116706,85710.0,85701.0,0.1318]
[1741397546781,0.1167065,85709.0,85701.0,0.1318]
[1741397546984,0.3768065,85709.0,85701.0,0.1318]
[1741397547174,0.1167084,85708.0,85701.0,0.07392762]
[1741397547480,0.1167084,85708.0,85698.0,0.3608]
[1741397547682,0.1167084,85708.0,85696.0,0.7348]
[1741397547683,0.3608,85702.0,85696.0,0.7348]
[1741397547869,0.3768174,85701.0,85696.0,0.0006]
[1741397548069,0.2601,85701.0,85694.0,0.3608]
[1741397548678,0.2601,85701.0,85696.0,0.0583618]
[1741397548881,0.2601,85701.0,85695.0,0.0747]
[1741397549077,0.2601,85701.0,85696.0,0.1167241]
[1741397549278,0.1278,85701.0,85700.0,0.2167187]
[1741397549673,0.3608,85709.0,85702.0,0.1167152]
[1741397549875,0.126,85713.0,85703.0,0.0747]
[1741397550082,0.126,85713.0,85710.0,0.05883182]
[1741397550280,0.126,85713.0,85708.0,0.10464]
[1741397550773,0.126,85713.0,85712.0,0.1167024]
[1741397550978,0.126,85713.0,85712.0,0.3608]
[1741397551272,0.126,85713.0,85712.0,0.4775024]
[1741397551476,0.126,85713.0,85712.0,0.3608]
[1741397551680,0.126,85713.0,85712.0,0.4775024]
[1741397552077,0.126,85713.0,85712.0,0.3608]
[1741397552276,0.126,85713.0,85712.0,0.4775024]
[1741397552485,8.977e-05,85726.0,85725.0,0.1166847]
[1741397552682,8.977e-05,85726.0,85724.0,0.3608]
[1741397552884,8.977e-05,85726.0,85725.0,0.1166847]
[1741397553079,8.977e-05,85726.0,85725.0,0.3412048]
[1741397553380,0.1251,85742.0,85738.0,0.116667]
[1741397553582,0.3608,85731.0,85666.0,0.01752]
[1741397553791,0.3608,85667.0,85664.0,0.03120819]
[1741397553975,0.3608,85681.0,85657.0,0.63983362]
[1741397554286,0.1318,85680.0,85674.0,0.03120819]
[1741397554484,0.2177,85721.0,85663.0,0.3608]
[1741397554485,0.3608,85710.0,85682.0,0.0583711]
[1741397554685,0.3608,85717.0,85700.0,0.27903362]
[1741397554987,0.3608,85717.0,85699.0,0.03120819]
[1741397554988,0.3608,85702.0,85697.0,0.03120819]
[1741397555185,0.3608,85702.0,85698.0,0.03120819]
[1741397555384,8.795e-05,85716.0,85684.0,0.1249]
[1741397555385,0.7216,85699.0,85684.0,0.1249]
[1741397555589,0.3608,85685.0,85683.0,0.73484]
[1741397555885,0.3608,85698.0,85683.0,0.73484]
[1741397556274,0.3608,85686.0,85683.0,0.67696762]
[1741397556680,0.1333,85685.0,85683.0,0.67696762]
[1741397557683,0.60417042,85684.0,85683.0,0.27076762]
[1741397557992,0.1167678,85664.0,85663.0,0.73492]
[1741397558290,0.1167678,85664.0,85650.0,0.03120819]
[1741397558291,0.3608,85664.0,85650.0,0.03120819]
[1741397558487,0.3608,85653.0,85643.0,0.3608]
[1741397558685,0.1167951,85644.0,85643.0,0.3608]
[1741397559092,0.0584005,85640.0,85624.0,0.3608]
[1741397559391,0.3608,85636.0,85613.0,0.73556]
[1741397559587,0.3608,85621.0,85615.0,0.03120819]
[1741397559786,0.3608,85621.0,85616.0,0.1201]
[1741397560185,0.3608,85621.0,85617.0,0.03120819]
[1741397560386,0.3608,85621.0,85618.0,0.16360819]
[1741397560683,0.3608,85621.0,85619.0,0.1308]
[1741397561189,0.3608,85621.0,85620.0,0.16360819]
[1741397561394,0.00017512,85627.0,85620.0,0.16360819]
[1741397561589,0.00017512,85627.0,85626.0,0.03120819]
[1741397561779,0.00017512,85627.0,85626.0,0.14802779]
[1741397561979,0.3608,85638.0,85637.0,0.1168046]
[1741397562186,0.3608,85638.0,85637.0,0.09014041]
[1741397562386,8.258e-05,85639.0,85638.0,0.1168032]
[1741397562679,0.13540931,85657.0,85638.0,0.28560819]
[1741397562885,0.13540931,85657.0,85647.0,0.3608]
[1741397563195,0.13540931,85657.0,85656.0,0.14798689]
[1741397563385,0.3608,85674.0,85656.0,0.14798689]
[1741397563386,0.00175286,85681.0,85656.0,0.793629]
[1741397563599,0.3608,85691.0,85680.0,0.03120819]
[1741397563782,0.00014306,85690.0,85681.0,0.3016121]
[1741397564082,0.00014306,85690.0,85689.0,0.1167337]
[1741397564283,0.00014306,85690.0,85689.0,0.03120819]
[1741397565293,0.00014306,85690.0,85684.0,0.11674]
[1741397565498,0.00014306,85690.0,85682.0,0.3608]
[1741397565681,0.00014306,85690.0,85687.0,0.1167362]
[1741397565881,0.00014306,85690.0,85688.0,0.1296]
[1741397566081,0.00014306,85690.0,85689.0,0.1167337]
[1741397566494,0.00014306,85690.0,85689.0,0.2403337]
[1741397566692,0.00014306,85690.0,85689.0,0.3680337]
[1741397566992,0.00014306,85690.0,85689.0,0.2513]
[1741397567403,0.00014306,85690.0,85689.0,0.36514]
[1741397568397,0.36094306,85690.0,85689.0,0.30726762]
[1741397568596,0.47767546,85690.0,85689.0,0.1277]
[1741397568792,0.1167337,85689.0,85682.0,0.00895111]
[1741397568997,0.3608,85683.0,85681.0,0.00017512]
[1741397569194,0.1214,85682.0,85681.0,0.00017512]
[1741397569390,0.3608,85683.0,85682.0,0.1167433]
[1741397569589,0.00014306,85690.0,85682.0,0.1167433]
[1741397569590,0.00014306,85690.0,85687.0,0.0583678]
[1741397569798,0.00014306,85690.0,85688.0,0.1336]
[1741397569999,0.3608,85689.0,85688.0,0.1336]
[1741397570199,0.4929,85689.0,85688.0,0.1336]
[1741397570694,0.1321,85689.0,85688.0,0.1336]
[1741397571104,0.1321,85689.0,85688.0,0.2503351]
[1741397571297,0.1321,85689.0,85688.0,0.07572762]
[1741397571886,0.1321,85689.0,85688.0,0.19246272]
[1741397572198,0.00014306,85690.0,85688.0,0.07572762]
[1741397572394,0.00014306,85690.0,85689.0,0.1286]
[1741397572694,0.00014306,85690.0,85689.0,0.2453337]
[1741397573698,0.00017512,85698.0,85697.0,0.1167228]
[1741397573894,0.00017512,85698.0,85697.0,1.2126828]
[1741397574285,0.00017512,85698.0,85697.0,1.15481042]
[1741397574493,0.00017512,85698.0,85697.0,1.28671042]
[1741397574694,0.0002584,85698.0,85697.0,1.28671042]
[1741397575299,0.1253,85715.0,85709.0,0.1167058]
[1741397575502,0.1253,85715.0,85710.0,0.2578]
[1741397576103,0.3608,85716.0,85710.0,0.2578]
[1741397576306,0.3608,85716.0,85712.0,0.1167014]
[1741397576601,0.00012983,85715.0,85713.0,0.2612]
[1741397576903,0.13192983,85715.0,85713.0,0.2612]
[1741397577196,0.00012983,85715.0,85713.0,0.2612]
[1741397577394,0.00412983,85715.0,85714.0,0.05882732]
[1741397577796,0.00012983,85715.0,85714.0,0.32002732]
[1741397577997,0.00412983,85715.0,85714.0,0.32002732]
[1741397578189,0.00412983,85715.0,85714.0,0.43258732]
[1741397578395,0.00012983,85715.0,85714.0,0.43258732]
[1741397578609,0.00412983,85715.0,85714.0,0.43258732]
[1741397579298,0.00412983,85715.0,85714.0,0.79338732]
[1741397579599,0.00017502,85722.0,85721.0,0.1166901]
[1741397579801,0.00017502,85722.0,85714.0,0.7352]
[1741397579997,0.0583512,85712.0,85704.0,0.00017502]
[1741397580199,0.3608,85707.0,85704.0,0.00017502]
[1741397580397,0.00017502,85722.0,85699.0,0.67794264]
[1741397580598,0.00017502,85722.0,85710.0,0.27903362]
[1741397580799,0.00017502,85722.0,85721.0,0.1166901]
[1741397581110,0.3608,85752.0,85720.0,0.50888815]
[1741397581302,0.1261,85751.0,85743.0,0.11666]
[1741397581503,0.3608,85715.0,85640.0,0.42497094]
[1741397581709,0.1167991,85641.0,85640.0,0.38959483]
[1741397581891,0.7216,85643.0,85610.0,0.27903362]
[1741397582091,0.4776401,85611.0,85610.0,0.01752]
[1741397582298,0.1168455,85607.0,85606.0,0.00175201]
[1741397582802,0.1168455,85607.0,85598.0,0.29490614]
[1741397582803,0.1168565,85599.0,85598.0,0.29490614]
[1741397583199,0.2668565,85599.0,85598.0,0.29490614]
[1741397583397,0.3608,85600.0,85598.0,0.31242614]
[1741397583602,0.3608,85600.0,85599.0,0.25083]
[1741397583798,0.36090506,85600.0,85599.0,0.28576]
[1741397584004,0.36090506,85600.0,85599.0,0.37403]
[1741397584202,0.00010506,85600.0,85599.0,0.40896]
[1741397584505,0.36090506,85600.0,85599.0,0.53646]
[1741397584903,0.00010506,85600.0,85599.0,0.53746]
[1741397585500,0.36090506,85600.0,85599.0,0.65266]
[1741397586113,0.00010506,85600.0,85599.0,0.65266]
[1741397586406,0.00010506,85600.0,85599.0,0.7695165]
[1741397586608,0.29626511,85607.0,85599.0,0.32654762]
[1741397586907,0.36097515,85615.0,85606.0,0.26824]
[1741397587109,0.36097515,85615.0,85614.0,0.26824]
[1741397587803,0.47780985,85615.0,85603.0,0.13477642]
[1741397588003,0.116838,85613.0,85612.0,0.23331]
[1741397588310,0.2618,85614.0,85612.0,0.23331]
[1741397588503,0.2608,85614.0,85604.0,0.1348]
[1741397588808,0.3608,85605.0,85604.0,0.1348]
[1741397589308,0.3598,85605.0,85604.0,0.23331]
[1741397589606,0.3598,85605.0,85604.0,0.17543762]
[1741397590105,0.1168561,85600.0,85590.0,0.00017515]
[1741397590303,0.3608,85591.0,85590.0,0.00017515]
[1741397590504,0.1269,85599.0,85597.0,0.17543762]
[1741397590505,0.4776578,85598.0,85597.0,0.17543762]
[1741397590803,0.4766578,85598.0,85597.0,0.17543762]
[1741397591005,0.1168613,85596.0,85590.0,0.00017515]
[1741397591302,0.1371,85595.0,85594.0,0.17543762]
[1741397591609,0.4979,85595.0,85594.0,0.17543762]
[1741397591812,0.3608,85595.0,85590.0,0.00117515]
[1741397592111,0.1371,85604.0,85597.0,0.001]
[1741397592402,0.4776578,85598.0,85597.0,0.001]
[1741397592609,0.1168614,85596.0,85594.0,0.001]
[1741397592804,0.2539619,85595.0,85594.0,0.001]
[1741397593209,0.1371,85595.0,85594.0,0.001]
[1741397593404,0.36220001,85598.0,85594.0,0.001]
[1741397593405,0.1277,85597.0,85594.0,0.21136762]
[1741397593708,0.3608,85622.0,85597.0,0.00105369]
[1741397593909,8.694e-05,85598.0,85597.0,0.1168592]
[1741397594208,0.3608,85614.0,85605.0,0.1168476]
[1741397594400,0.00017526,85618.0,85606.0,0.2502]
[1741397594604,0.00017526,85618.0,85617.0,0.00105369]
[1741397594903,0.00017526,85618.0,85606.0,0.19284768]
[1741397595099,0.00017526,85618.0,85614.0,0.1168359]
[1741397595306,0.00017526,85618.0,85609.0,0.00017526]
[1741397595307,0.00017526,85618.0,85617.0,0.1168319]
[1741397595512,0.3608,85630.0,85625.0,0.0584103]
[1741397595807,0.3608,85630.0,85627.0,0.1168172]
[1741397596106,0.3608,85628.0,85626.0,0.84944]
[1741397596297,0.3608,85628.0,85627.0,0.01752]